fUSD/lending_fUSD_20260421
["ID","MTS","AMOUNT","RATE_DAILY","PERIOD"]
[420906414,1776704452784,-500.0,0.00011999,2]
[420906415,1776704452825,-500.0,0.00011999,2]
[420906416,1776704453112,-500.0,0.00011999,2]
[420906417,1776704453163,-150.0,0.00011999,2]
[420906418,1776704453196,-192.63851331,0.00011999,2]
[420906419,1776704453229,-771.92,0.00012,2]
[420906420,1776704453263,-1276533.47435473,0.00012,2]
[420906429,1776704697946,161.009,0.00016438,30]
[420906439,1776705031556,-150.0,8.571e-05,2]
[420906440,1776705031566,-234.09,8.703e-05,2]
[420906441,1776705031575,-150.0,8.961e-05,2]
[420906442,1776705031585,-1200.0,9.039e-05,2]
[420906443,1776705031594,-1200.0,9.039e-05,2]
[420906444,1776705031604,-49966.03005159,9.04e-05,2]
[420906445,1776705031613,-294.09,9.104e-05,2]
[420906446,1776705031622,-150.0,9.261e-05,2]
[420906447,1776705031632,-150.0,9.404e-05,2]
[420906448,1776705031641,-150.0,9.704e-05,2]
[420906449,1776705031651,-260.0,9.863e-05,2]
[420906450,1776705031660,-769.0,9.943e-05,2]
[420906451,1776705031669,-159.09,0.00010004,2]
[420906452,1776705031679,-150.99,0.00010071,2]
[420906453,1776705031688,-20035.22,0.00010071,2]
[420906454,1776705031698,-299.99,0.00010071,2]
[420906455,1776705031707,-5608.11004847,0.000107,2]
[420906456,1776705031716,-171.86,0.000108,2]
[420906457,1776705031726,-36312.1498,0.00011069,2]
[420906458,1776705031735,-165.95,0.00011086,2]
[420906459,1776705031744,-4765.68,0.00011169,2]
[420906460,1776705031753,-9999.99,0.00011169,2]
[420906461,1776705031763,-164.71,0.00011384,2]
[420906462,1776705031772,-3469.317,0.0001176,2]
[420906463,1776705031781,-237.074,0.0001176,2]
[420906464,1776705031790,-165.95,0.00011877,2]
[420906465,1776705031799,-500.0,0.00011899,2]
[420906466,1776705031808,-221.42903609,0.00011899,2]
[420906467,1776705031818,-22679.08868115,0.000119,2]
[420906469,1776705031827,-2500.0,0.000119,2]
[420906471,1776705031837,-500.0,0.00011973,2]
[420906473,1776705031846,-500.0,0.00011973,2]
[420906475,1776705031855,-13401.4104217,0.00011991,2]
[420906477,1776705031864,-2014.3928548,0.00011991,2]
[420906479,1776705031874,-151.0,0.00011993,2]
[420906481,1776705031884,-151.0,0.00011993,2]
[420906483,1776705031893,-500.0,0.00011993,2]
[420906485,1776705031903,-151.0,0.00011993,2]
[420906487,1776705031912,-500.0,0.00011993,2]
[420906489,1776705031921,-151.0,0.00011993,2]
[420906491,1776705031930,-500.0,0.00011993,2]
[420906493,1776705031939,-151.0,0.00011993,2]
[420906495,1776705031948,-500.0,0.00011993,2]
[420906497,1776705031956,-151.0,0.00011993,2]
[420906499,1776705031966,-500.0,0.00011993,2]
[420906501,1776705031976,-151.0,0.00011993,2]
[420906503,1776705031985,-500.0,0.00011993,2]
[420906505,1776705031995,-151.0,0.00011993,2]
[420906506,1776705032003,-500.0,0.00011993,2]
[420906507,1776705032012,-151.0,0.00011993,2]
[420906508,1776705032021,-500.0,0.00011993,2]
[420906509,1776705032030,-500.0,0.00011993,2]
[420906510,1776705032039,-151.0,0.00011993,2]
[420906511,1776705032048,-500.0,0.00011993,2]
[420906512,1776705032057,-500.0,0.00011993,2]
[420906513,1776705032066,-151.0,0.00011993,2]
[420906514,1776705032076,-500.0,0.00011993,2]
[420906515,1776705032085,-189.34346393,0.00011993,2]
[420906516,1776705032095,-500.0,0.00011993,2]
[420906517,1776705032105,-500.0,0.00011993,2]
[420906518,1776705032114,-500.0,0.00011993,2]
[420906519,1776705032123,-500.0,0.00011993,2]
[420906520,1776705032132,-500.0,0.00011993,2]
[420906521,1776705032142,-500.0,0.00011993,2]
[420906522,1776705032151,-500.0,0.00011993,2]
[420906523,1776705032160,-500.0,0.00011993,2]
[420906524,1776705032170,-603.9448191,0.00011999,2]
[420906525,1776705032179,-500.0,0.00011999,2]
[420906527,1776705032188,-500.0,0.00011999,2]
[420906529,1776705032197,-442.26194745,0.00011999,2]
[420906531,1776705032206,-522825.19053794,0.00012,2]
[420906533,1776705032215,-4737.23455601,0.00012,2]
[420906534,1776705032224,-151.0,0.00012,2]
[420906535,1776705032233,-278.47254857,0.00012,2]
[420906536,1776705032642,-1000.0,0.00012,2]
[420906537,1776705032652,-1000.0,0.00012,2]
[420906538,1776705032661,-1000.0,0.00012,2]
[420906539,1776705032671,-1000.0,0.00012,2]
[420906540,1776705032680,-1000.0,0.00012,2]
[420906541,1776705032690,-247.0,0.00012,2]
[420906542,1776705032699,-247.0,0.00012,2]
[420906543,1776705032709,-247.0,0.00012,2]
[420906544,1776705032718,-1000.0,0.00012,2]
[420906545,1776705032728,-1000.0,0.00012,2]
[420906546,1776705032737,-2199.27206721,0.00012,2]
[420906547,1776705032747,-1000.0,0.00012,2]
[420906548,1776705032756,-1000.0,0.00012,2]
[420906549,1776705032766,-1000.0,0.00012,2]
[420906550,1776705032775,-1000.0,0.00012,2]
[420906551,1776705032785,-1000.0,0.00012,2]
[420906552,1776705032795,-1000.0,0.00012,2]
[420906553,1776705032804,-1600.0,0.00012267,2]
[420906554,1776705032814,-310.37626972,0.000125,2]
[420906555,1776705032823,-1000.0,0.00012521,2]
[420906556,1776705032833,-165.95,0.00012669,2]
[420906557,1776705032842,-274.44,0.00012877,2]
[420906558,1776705032853,-1576.0,0.00012893,2]
[420906559,1776705032862,-1576.0,0.00012893,2]
[420906560,1776705032871,-961.0,0.00012893,2]
[420906561,1776705032880,-162.0,0.00012893,2]
[420906562,1776705032890,-2817.0,0.00012893,2]
[420906563,1776705032899,-2817.0,0.00012893,2]
[420906564,1776705032909,-162.0,0.00012893,2]
[420906565,1776705032918,-162.0,0.00012893,2]
[420906566,1776705032928,-2817.0,0.00012893,2]
[420906567,1776705032938,-162.0,0.00012893,2]
[420906568,1776705032947,-2817.0,0.00012893,2]
[420906569,1776705032956,-2817.0,0.00012893,2]
[420906570,1776705032965,-2817.0,0.00012893,2]
[420906571,1776705032978,-176.0,0.00012893,2]
[420906572,1776705032988,-2817.0,0.00012893,2]
[420906573,1776705032997,-2817.0,0.00012893,2]
[420906574,1776705033007,-2817.0,0.00012893,2]
[420906575,1776705033016,-2817.0,0.00012893,2]
[420906576,1776705033026,-1674.0,0.00012893,2]
[420906577,1776705033035,-5660.18179324,0.00013,2]
[420906578,1776705033044,-8125.80657817,0.00013,5]
[420906579,1776705033054,-250.0,0.00013,2]
[420906580,1776705033063,-378.28679014,0.00013034,2]
[420906581,1776705033072,-151.0,0.00013034,2]
[420906582,1776705033081,-2000.0,0.00013034,2]
[420906583,1776705033090,-2000.0,0.00013034,2]
[420906584,1776705033099,-2000.0,0.00013034,2]
[420906585,1776705033108,-765.84870508,0.00013034,2]
[420906586,1776705033118,-174.61919141,0.00013034,2]
[420906587,1776705033128,-221.60733489,0.00013034,2]
[420906588,1776705033137,-5398.81254132,0.0001305,2]
[420906589,1776705033147,-1500.0,0.00013068,2]
[420906590,1776705033156,-151.0,0.00013089,2]
[420906591,1776705033166,-151.0,0.00013144,2]
[420906592,1776705033175,-162.0,0.00013171,2]
[420906593,1776705033185,-151.0,0.00013199,2]
[420906594,1776705033194,-2014.3928548,0.00013251,2]
[420906595,1776705033203,-151.0,0.00013254,2]
[420906596,1776705033213,-164.71,0.00013263,2]
[420906597,1776705033222,-151.0,0.00013309,2]
[420906598,1776705033232,-623.0,0.00013335,2]
[420906599,1776705033241,-151.0,0.00013364,2]
[420906600,1776705033250,-151.0,0.00013419,2]
[420906601,1776705033260,-165.95,0.00013461,2]
[420906602,1776705033270,-151.0,0.00013474,2]
[420906603,1776705033280,-250.0,0.00013474,2]
[420906604,1776705033289,-1048.0,0.00013485,2]
[420906605,1776705033298,-3528.0,0.00013485,2]
[420906606,1776705033307,-1600.0,0.00013494,2]
[420906607,1776705033317,-1000.0,0.000135,2]
[420906608,1776705033326,-505.0,0.000135,2]
[420906609,1776705033335,-151.0,0.00013529,2]
[420906610,1776705033344,-22679.08868109,0.00013567,2]
[420906611,1776705033355,-181.08010149,0.00013582,2]
[420906612,1776705033364,-162.5472231,0.00013616,2]
[420906613,1776705033373,-500.0,0.00013698,2]
[420906614,1776705033383,-500.0,0.00013698,2]
[420906615,1776705033392,-500.0,0.00013698,2]
[420906616,1776705033402,-500.0,0.00013698,2]
[420906617,1776705033412,-500.0,0.00013698,2]
[420906618,1776705033422,-500.0,0.00013698,2]
[420906619,1776705033431,-500.0,0.00013698,2]
[420906620,1776705033440,-500.0,0.00013698,2]
[420906621,1776705033450,-500.0,0.00013698,2]
[420906622,1776705033459,-500.0,0.00013698,2]
[420906623,1776705033469,-500.0,0.00013698,2]
[420906624,1776705033478,-500.0,0.00013698,2]
[420906625,1776705033488,-500.0,0.00013698,2]
[420906626,1776705033499,-515.45696634,0.00013698,2]
[420906627,1776705033509,-500.0,0.00013698,2]
[420906628,1776705033518,-500.0,0.00013698,2]
[420906629,1776705033527,-500.0,0.00013698,2]
[420906630,1776705033537,-500.0,0.00013698,2]
[420906631,1776705033546,-500.0,0.00013698,2]
[420906632,1776705033555,-500.0,0.00013698,2]
[420906633,1776705033565,-500.0,0.00013698,2]
[420906634,1776705033574,-500.0,0.00013698,2]
[420906635,1776705033583,-500.0,0.00013698,2]
[420906636,1776705033592,-500.0,0.00013698,2]
[420906637,1776705033603,-343.10739653,0.00013698,2]
[420906638,1776705033613,-500.0,0.00013698,2]
[420906639,1776705033623,-500.0,0.00013698,2]
[420906640,1776705033632,-500.0,0.00013698,2]
[420906641,1776705033642,-500.0,0.00013698,2]
[420906642,1776705033651,-500.0,0.00013698,2]
[420906643,1776705033660,-500.0,0.00013698,2]
[420906644,1776705033670,-500.0,0.00013698,2]
[420906645,1776705033679,-500.0,0.00013698,2]
[420906646,1776705033689,-500.0,0.00013698,2]
[420906647,1776705033699,-500.0,0.00013698,2]
[420906648,1776705033708,-500.0,0.00013698,2]
[420906649,1776705033718,-500.0,0.00013698,2]
[420906650,1776705033728,-500.0,0.00013698,2]
[420906651,1776705033737,-500.0,0.00013698,2]
[420906652,1776705033747,-500.0,0.00013698,2]
[420906653,1776705033757,-187.38928383,0.00013698,2]
[420906654,1776705033766,-500.0,0.00013698,2]
[420906655,1776705033776,-500.0,0.00013698,2]
[420906656,1776705033785,-500.0,0.00013698,2]
[420906657,1776705033795,-500.0,0.00013698,2]
[420906658,1776705033805,-500.0,0.00013698,2]
[420906659,1776705033814,-500.0,0.00013698,2]
[420906660,1776705033823,-500.0,0.00013698,2]
[420906661,1776705033833,-500.0,0.00013698,2]
[420906662,1776705033842,-500.0,0.00013698,2]
[420906663,1776705033852,-500.0,0.00013698,2]
[420906664,1776705033862,-500.0,0.00013698,2]
[420906665,1776705033871,-500.0,0.00013698,2]
[420906666,1776705033881,-500.0,0.00013698,2]
[420906667,1776705033890,-500.0,0.00013698,2]
[420906668,1776705033899,-500.0,0.00013698,2]
[420906669,1776705033909,-500.0,0.00013698,2]
[420906670,1776705033919,-500.0,0.00013698,2]
[420906671,1776705033928,-500.0,0.00013698,2]
[420906672,1776705033938,-2011.36,0.00013698,2]
[420906673,1776705033947,-2011.36,0.00013698,2]
[420906674,1776705033957,-2011.36,0.00013698,2]
[420906675,1776705033966,-2011.36,0.00013698,2]
[420906676,1776705033975,-2011.36,0.00013698,2]
[420906677,1776705033985,-2011.36,0.00013698,2]
[420906678,1776705033994,-500.0,0.00013698,2]
[420906679,1776705034003,-500.0,0.00013698,2]
[420906680,1776705034014,-500.0,0.00013698,2]
[420906681,1776705034023,-500.0,0.00013698,2]
[420906682,1776705034032,-500.0,0.00013698,2]
[420906683,1776705034041,-500.0,0.00013698,2]
[420906684,1776705034050,-500.0,0.00013698,2]
[420906685,1776705034060,-500.0,0.00013698,2]
[420906686,1776705034069,-500.0,0.00013698,2]
[420906687,1776705034079,-500.0,0.00013698,2]
[420906688,1776705034089,-500.0,0.00013698,2]
[420906689,1776705034098,-500.0,0.00013698,2]
[420906690,1776705034108,-500.0,0.00013698,2]
[420906691,1776705034118,-500.0,0.00013698,2]
[420906692,1776705034127,-500.0,0.00013698,2]
[420906693,1776705034136,-500.0,0.00013698,2]
[420906694,1776705034145,-500.0,0.00013698,2]
[420906695,1776705034154,-500.0,0.00013698,2]
[420906696,1776705034163,-500.0,0.00013698,2]
[420906697,1776705034173,-500.0,0.00013698,2]
[420906698,1776705034182,-500.0,0.00013698,2]
[420906699,1776705034191,-500.0,0.00013698,2]
[420906700,1776705034200,-500.0,0.00013698,2]
[420906701,1776705034209,-500.0,0.00013698,2]
[420906702,1776705034218,-613.61,0.00013698,2]
[420906703,1776705034228,-613.61,0.00013698,2]
[420906704,1776705034237,-613.61,0.00013698,2]
[420906705,1776705034247,-613.61,0.00013698,2]
[420906706,1776705034256,-613.61,0.00013698,2]
[420906707,1776705034266,-613.61,0.00013698,2]
[420906708,1776705034275,-613.61,0.00013698,2]
[420906709,1776705034284,-613.61,0.00013698,2]
[420906710,1776705034294,-250.0,0.00013698,2]
[420906711,1776705034303,-500.0,0.00013698,2]
[420906712,1776705034313,-500.0,0.00013698,2]
[420906713,1776705034323,-500.0,0.00013698,2]
[420906714,1776705034332,-500.0,0.00013698,2]
[420906715,1776705034341,-500.0,0.00013698,2]
[420906716,1776705034351,-500.0,0.00013698,2]
[420906717,1776705034360,-500.0,0.00013698,2]
[420906718,1776705034369,-500.0,0.00013698,2]
[420906719,1776705034378,-500.0,0.00013698,2]
[420906720,1776705034387,-500.0,0.00013698,2]
[420906721,1776705034396,-500.0,0.00013698,2]
[420906722,1776705034405,-500.0,0.00013698,2]
[420906723,1776705034415,-500.0,0.00013698,2]
[420906724,1776705034424,-500.0,0.00013698,2]
[420906725,1776705034434,-500.0,0.00013698,2]
[420906726,1776705034443,-500.0,0.00013698,2]
[420906727,1776705034452,-501.06268498,0.00013698,2]
[420906728,1776705034462,-500.0,0.00013698,2]
[420906729,1776705034471,-500.0,0.00013698,2]
[420906730,1776705034480,-500.0,0.00013698,2]
[420906731,1776705034490,-500.0,0.00013698,2]
[420906732,1776705034499,-500.0,0.00013698,2]
[420906733,1776705034509,-500.0,0.00013698,2]
[420906734,1776705034518,-500.0,0.00013698,2]
[420906735,1776705034528,-500.0,0.00013698,2]
[420906736,1776705034538,-970.36,0.00013698,2]
[420906737,1776705034547,-970.36,0.00013698,2]
[420906738,1776705034557,-970.36,0.00013698,2]
[420906739,1776705034566,-970.36,0.00013698,2]
[420906740,1776705034576,-970.36,0.00013698,2]
[420906741,1776705034584,-970.36,0.00013698,2]
[420906742,1776705034592,-1527.65,0.00013698,2]
[420906743,1776705034601,-1527.65,0.00013698,2]
[420906744,1776705034609,-1527.65,0.00013698,2]
[420906745,1776705034618,-1527.65,0.00013698,2]
[420906746,1776705034628,-1527.65,0.00013698,2]
[420906747,1776705034637,-1527.65,0.00013698,2]
[420906748,1776705034647,-1527.65,0.00013698,2]
[420906749,1776705034656,-1527.65,0.00013698,2]
[420906750,1776705034665,-500.0,0.00013698,2]
[420906751,1776705034675,-500.0,0.00013698,2]
[420906752,1776705034684,-500.0,0.00013698,2]
[420906753,1776705034694,-500.0,0.00013698,2]
[420906754,1776705034703,-500.0,0.00013698,2]
[420906755,1776705034712,-500.0,0.00013698,2]
[420906756,1776705034734,-500.0,0.00013698,2]
[420906757,1776705034743,-500.0,0.00013698,2]
[420906758,1776705034753,-500.0,0.00013698,2]
[420906759,1776705034762,-500.0,0.00013698,2]
[420906760,1776705034771,-500.0,0.00013698,2]
[420906761,1776705034780,-500.0,0.00013698,2]
[420906762,1776705034790,-500.0,0.00013698,2]
[420906763,1776705034799,-500.0,0.00013698,2]
[420906764,1776705034809,-500.0,0.00013698,2]
[420906765,1776705034818,-500.0,0.00013698,2]
[420906766,1776705034827,-500.0,0.00013698,2]
[420906767,1776705034836,-500.0,0.00013698,2]
[420906768,1776705034846,-500.0,0.00013698,2]
[420906769,1776705034855,-500.0,0.00013698,2]
[420906770,1776705034865,-500.0,0.00013698,2]
[420906771,1776705034874,-500.0,0.00013698,2]
[420906772,1776705034883,-500.0,0.00013698,2]
[420906773,1776705034893,-500.0,0.00013698,2]
[420906774,1776705034902,-500.0,0.00013698,2]
[420906775,1776705034911,-500.0,0.00013698,2]
[420906776,1776705034921,-500.0,0.00013698,2]
[420906777,1776705034931,-500.0,0.00013698,2]
[420906778,1776705034940,-500.0,0.00013698,2]
[420906779,1776705034949,-500.0,0.00013698,2]
[420906780,1776705034959,-500.0,0.00013698,2]
[420906781,1776705034968,-500.0,0.00013698,2]
[420906782,1776705034977,-500.0,0.00013698,2]
[420906783,1776705034987,-592.96227157,0.00013698,2]
[420906784,1776705034996,-247.0,0.00013698,2]
[420906785,1776705035006,-250.30334436,0.00013698,2]
[420906786,1776705035015,-500.0,0.00013698,2]
[420906787,1776705035024,-500.0,0.00013698,2]
[420906788,1776705035034,-500.0,0.00013698,2]
[420906789,1776705035043,-500.0,0.00013698,2]
[420906790,1776705035052,-500.0,0.00013698,2]
[420906791,1776705035062,-500.0,0.00013698,2]
[420906792,1776705035071,-500.0,0.00013698,2]
[420906793,1776705035080,-199.87781694,0.00013698,2]
[420906794,1776705035089,-502.77724734,0.00013698,2]
[420906795,1776705035099,-455.63,0.00013699,2]
[420906796,1776705035108,-500.0,0.00013699,2]
[420906797,1776705035118,-160.6543672,0.00013699,2]
[420906798,1776705035128,-500.0,0.00013699,2]
[420906799,1776705035137,-500.0,0.00013699,2]
[420906800,1776705035146,-500.0,0.00013699,2]
[420906801,1776705035155,-500.0,0.00013699,2]
[420906802,1776705035165,-500.0,0.00013699,2]
[420906803,1776705035174,-500.0,0.00013699,2]
[420906804,1776705035183,-500.0,0.00013699,2]
[420906805,1776705035193,-338.39936923,0.00013699,2]
[420906806,1776705035202,-500.0,0.00013699,2]
[420906807,1776705035211,-987.36,0.00013699,2]
[420906808,1776705035220,-312.35893712,0.00013699,2]
[420906809,1776705035230,-189.77878572,0.00013699,2]
[420906810,1776705035239,-787.08,0.00013699,2]
[420906811,1776705035248,-297.29,0.000137,2]
[420906812,1776705035257,-22156.72,0.000137,2]
[420906813,1776705035266,-22156.72,0.000137,2]
[420906814,1776705035276,-2817.0,0.0001372,2]
[420906815,1776705035285,-1283.271,0.00013746,2]
[420906816,1776705035294,-150.0,0.00013746,2]
[420906817,1776705035303,-1219.0,0.00013746,2]
[420906818,1776705035313,-927.0,0.00013746,2]
[420906819,1776705035322,-2474.0,0.00013746,2]
[420906820,1776705035331,-6030.0,0.00013746,2]
[420906821,1776705035341,-10000.0,0.00013763,2]
[420906822,1776705035350,-600.0,0.000139,5]
[420906823,1776705035359,-160.0,0.00013962,7]
[420906824,1776705035368,-203.268317,0.00013962,7]
[420906825,1776705035378,-246.536635,0.00013962,7]
[420906826,1776705035387,-987.36,0.00013973,2]
[420906827,1776705035396,-787.08,0.00013973,2]
[420906828,1776705035405,-500.0,0.00013984,2]
[420906829,1776705035414,-500.0,0.00013989,2]
[420906830,1776705035423,-500.0,0.00013989,2]
[420906831,1776705035432,-500.0,0.00013989,2]
[420906832,1776705035442,-500.0,0.00013989,2]
[420906833,1776705035451,-500.0,0.00013989,2]
[420906834,1776705035460,-500.0,0.00013989,2]
[420906835,1776705035469,-500.0,0.00013989,2]
[420906836,1776705035478,-2011.36,0.00013989,2]
[420906837,1776705035487,-500.0,0.00013989,2]
[420906838,1776705035496,-970.36,0.00013989,2]
[420906839,1776705035506,-500.20236873,0.00013989,2]
[420906840,1776705035516,-33295.23640103,0.0001399,2]
[420906841,1776705035525,-500.0,0.00013999,2]
[420906842,1776705035534,-1500.0,0.00014,2]
[420906843,1776705035543,-160.0,0.00014005,7]
[420906844,1776705035552,-807.447091,0.00014005,7]
[420906845,1776705035562,-1454.894182,0.00014005,7]
[420906846,1776705035571,-160.0,0.00014005,2]
[420906847,1776705035580,-703.777739,0.00014005,2]
[420906848,1776705035589,-1247.555478,0.00014005,2]
[420906849,1776705035599,-1576.0,0.0001404,2]
[420906850,1776705035608,-500.0,0.00014049,2]
[420906851,1776705035617,-187.78006525,0.0001413,2]
[420906852,1776705035627,-1000.0,0.00014247,2]
[420906853,1776705035636,-1000.0,0.00014247,2]
[420906854,1776705035646,-1000.0,0.00014247,2]
[420906855,1776705035655,-1000.0,0.00014247,2]
[420906856,1776705035665,-1000.0,0.00014247,2]
[420906857,1776705035675,-1000.0,0.00014247,2]
[420906858,1776705035684,-1000.0,0.00014247,2]
[420906859,1776705035694,-612.72060808,0.00014247,2]
[420906860,1776705035704,-1000.0,0.00014247,2]
[420906861,1776705035713,-987.36,0.00014247,2]
[420906862,1776705035734,-787.08,0.00014247,2]
[420906863,1776705035743,-165.95,0.00014253,2]
[420906864,1776705035752,-195.876743,0.00014291,7]
[420906865,1776705035762,-160.0,0.00014291,7]
[420906866,1776705035771,-779.976071,0.00014291,7]
[420906867,1776705035780,-1399.952142,0.00014291,7]
[420906868,1776705035790,-217.206312,0.00014291,2]
[420906869,1776705035799,-2817.0,0.00014305,2]
[420906870,1776705035809,-500.0,0.00014383,2]
[420906871,1776705035818,-500.0,0.00014383,2]
[420906872,1776705035830,-500.0,0.00014383,2]
[420906873,1776705035839,-500.0,0.00014383,2]
[420906874,1776705035848,-500.0,0.00014383,2]
[420906875,1776705035859,-500.0,0.00014383,2]
[420906876,1776705035868,-500.0,0.00014383,2]
[420906877,1776705035878,-2011.36,0.00014383,2]
[420906878,1776705035887,-500.0,0.00014383,2]
[420906879,1776705035896,-970.36,0.00014383,2]
[420906880,1776705035906,-10421.83846196,0.0001439,2]
[420906881,1776705035915,-505.0,0.00014464,2]
[420906882,1776705035924,-2014.3928548,0.00014512,2]
[420906883,1776705035934,-987.36,0.00014521,2]
[420906884,1776705035943,-787.08,0.00014521,2]
[420906885,1776705035953,-2990.2588536,0.00014551,2]
[420906886,1776705035962,-213.14895634,0.00014572,2]
[420906887,1776705035971,-247.26037468,0.00014573,2]
[420906888,1776705035981,-500.0,0.00014581,2]
[420906889,1776705035990,-500.0,0.00014581,2]
[420906890,1776705035999,-500.0,0.00014581,2]
[420906891,1776705036009,-500.0,0.00014581,2]
[420906892,1776705036018,-500.0,0.00014581,2]
[420906893,1776705036027,-500.0,0.00014581,2]
[420906894,1776705036036,-613.61,0.00014581,2]
[420906895,1776705036046,-613.61,0.00014581,2]
[420906896,1776705036054,-500.0,0.00014581,2]
[420906897,1776705036064,-507.78445597,0.00014581,2]
[420906898,1776705036074,-500.0,0.00014581,2]
[420906899,1776705036083,-500.0,0.00014581,2]
[420906900,1776705036092,-1527.65,0.00014581,2]
[420906901,1776705036101,-1527.65,0.00014581,2]
[420906902,1776705036110,-500.0,0.00014581,2]
[420906903,1776705036119,-500.0,0.00014581,2]
[420906904,1776705036129,-500.0,0.00014581,2]
[420906905,1776705036138,-500.0,0.00014581,2]
[420906906,1776705036147,-500.0,0.00014581,2]
[420906907,1776705036155,-500.0,0.00014581,2]
[420906908,1776705036164,-500.0,0.00014581,2]
[420906909,1776705036173,-500.0,0.00014581,2]
[420906910,1776705036182,-451326.3447,0.00014582,2]
[420906911,1776705036191,-14052.21,0.000146,2]
[420906912,1776705036200,-277.184069,0.0001466,7]
[420906913,1776705036210,-194.72792766,0.00014678,2]
[420906914,1776705036219,-2817.0,0.0001468,2]
[420906915,1776705036228,-150.0,0.00014682,2]
[420906916,1776705036237,-1101.064215,0.00014705,7]
[420906917,1776705036246,-959.696917,0.00014705,2]
[420906918,1776705036255,-1100.64914677,0.00014716,2]
[420906919,1776705036265,-1600.0,0.0001472,2]
[420906920,1776705036274,-1500.0,0.00014795,2]
[420906921,1776705036283,-1500.0,0.00014795,2]
[420906922,1776705036292,-1500.0,0.00014795,2]
[420906923,1776705036301,-952.9027958,0.00014795,2]
[420906924,1776705036310,-1500.0,0.00014795,2]
[420906925,1776705036319,-1500.0,0.00014795,2]
[420906926,1776705036328,-1500.0,0.00014795,2]
[420906927,1776705036337,-567.59339456,0.00014795,2]
[420906928,1776705036346,-987.36,0.00014795,2]
[420906929,1776705036356,-787.08,0.00014795,2]
[420906930,1776705036365,-150.0,0.00014844,2]
[420906931,1776705036374,-150.13251298,0.00014844,2]
[420906932,1776705036383,-150.13681991,0.00014844,2]
[420906933,1776705036392,-150.0,0.00014844,2]
[420906934,1776705036401,-150.0,0.00014844,2]
[420906935,1776705036410,-150.0,0.00014844,2]
[420906936,1776705036419,-150.0,0.00014844,2]
[420906937,1776705036428,-150.0,0.00014844,2]
[420906938,1776705036438,-150.0,0.00014844,2]
[420906939,1776705036447,-150.0,0.00014844,2]
[420906940,1776705036457,-150.0,0.00014844,2]
[420906941,1776705036466,-1572.23861089,0.0001486,2]
[420906942,1776705036475,-229.72024352,0.000149,2]
[420906943,1776705036485,-229.72024352,0.000149,2]
[420906944,1776705036495,-229.72024352,0.000149,2]
[420906945,1776705036504,-1300.0,0.000149,5]
[420906946,1776705036513,-150.0,0.00014919,2]
[420906947,1776705036522,-150.0,0.00014922,2]
[420906948,1776705036532,-150.0,0.00014981,2]
[420906949,1776705036542,-150.0,0.00014981,2]
[420906950,1776705036551,-150.0,0.00014994,2]
[420906951,1776705036560,-2070.52647407,0.00015,2]
[420906952,1776705036569,-8060.43589106,0.00015,2]
[420906953,1776705036579,-1043.47319668,0.00015,2]